[Event "Finnish Women Championship 2022"]
[Site "Helsinki"]
[Date "2022.04.20"]
[Round "6.2"]
[White "Sippola, Sara-Olivia"]
[Black "Norlamo, Sarabella"]
[Result "1-0"]
[ECO "B09"]
[WhiteElo "1531"]
[BlackElo "1957"]
[Annotator "TA"]
[PlyCount "61"]
[EventDate "2022.04.15"]
[EventType "tourn"]
[EventCountry "FIN"]
[SourceTitle "playchess.com"]
[Source "ChessBase"]
[SourceQuality "1"]
[TimeControl "40/5400+30:1800+30"]

{[%evp 11,60,31,55,39,37,-6,40,50,45,39,29,40,35,51,134,74,85,83,83,78,96,66,60,30,157,158,145,152,126,57,283,273,268,275,279,268,543,539,522,512,585,557,29982,29983,29981,29981,29995,29996,29996,29997,29999]} 1. e4 {[%emt 0:00:02]} d6 {[%emt 0:00:05]} 2. d4 {[%emt 0:00:15]} Nf6 {[%emt 0:00:08]} 3. Nc3 {[%emt 0:00:29]} g6 {[%emt 0:00:09]} 4. f4 {[%emt 0:01:46]} Bg7 {[%emt 0:00:36]} 5. Nf3 {[%emt 0:00:07]} O-O {[%emt 0:01:24]} 6. Bd3 {[%emt 0:01:05]} Bg4 {[%emt 0:15:57]} 7. Be3 {[%emt 0:03:21] B09: Pirc Defence: Austrian Attack.} e5 {[%emt 0:06:44]} 8. O-O {[%emt 0:14:31] [#]} (8. h3 $5 {[%cal Rh3g4]} Bxf3 9. Qxf3 $11) 8... exd4 $146 {[%emt 0:14:53]} (8... Nc6 9. fxe5 dxe5) (8... Nc6 $11 9. fxe5 dxe5) ({Predecessor:} 8... Nbd7 9. f5 gxf5 10. exf5 e4 11. Nxe4 Nxe4 12. Bxe4 Re8 13. Qd3 Qe7 14. Ng5 h6 {0-1 (55) Hoffmann,K (1612)-Mader,H (1647) Rieneck 1993}) 9. Bxd4 $14 {[%emt 0:00:11] White is slightly better.} Nc6 {[%emt 0:00:06]} 10. Bf2 {[%emt 0:06:05]} Re8 {[%emt 0:06:58]} 11. h3 {[%emt 0:01:50]} Bxf3 {[%emt 0:01:27]} 12. Qxf3 {[%emt 0:00:13]} Nb4 {[%emt 0:03:58]} (12... Nd7 $14) 13. Bh4 {[%emt 0:04:19]} (13. Bc4 $142) 13... Nxd3 {[%emt 0:01:39]} 14. cxd3 {[%emt 0:08:06] Threatens to win with d4.} c6 {[%emt 0:10:18]} 15. f5 {[%emt 0:15:06] aiming for fxg6.} Qb6+ {[%emt 0:09:55]} 16. Kh1 {[%emt 0:01:52] Hoping for Bxf6.} Rf8 {[%emt 0:03:08]} 17. Ne2 {[%emt 0:08:11][%cal Bc3e2,Be2f4,Bf4e6][%mdl 32]} h6 {[%emt 0:04:57]} ({Don't do} 17... Qxb2 18. Rab1 Qe5 19. Rxb7 $14) (17... Nd7 $11 {remains equal.}) 18. Bxf6 $16 {[%emt 0:03:45]} Bxf6 {[%emt 0:00:01]} 19. fxg6 {[%emt 0:00:21]} fxg6 {[%emt 0:00:36] [#]} 20. Qg3 {[%emt 0:01:54]} (20. Qg4 $1 $16 {[%cal Rg4e6]}) 20... Kh7 $2 {[%emt 0:03:43] [#] A mistake that costs the game.} (20... g5 $14) 21. Nf4 $1 $18 {[%emt 0:02:55]} Rg8 {[%emt 0:03:38]} 22. Ne6 $1 {[%emt 0:01:46][%csl LRd6,LRf6]} Bg7 {[%emt 0:04:54]} 23. Qxd6 {[%emt 0:04:23] Strongly threatening Rf7.} Rae8 $2 {[%emt 0:00:44]} (23... c5 {was called for.} 24. Qd7 Qc6 25. Qxc6 bxc6) 24. Rf7 {[%emt 0:01:40][%cal Bf1f7,Bf7g7,Bg7h7][%mdl 32]} Qxb2 {[%emt 0:00:48]} 25. Raf1 {[%emt 0:00:37]} Kh8 {[%emt 0:03:02]} 26. Qd7 {[%emt 0:05:18]} ({Not} 26. Rxg7 Rxg7 27. Nxg7 Qxg7 $16) 26... Rb8 {[%emt 0:00:01]} 27. d4 {[%emt 0:01:07] White mates.} Qe2 {[%emt 0:00:39]} 28. Kh2 {[%emt 0:01:24]} Qxe4 {[%emt 0:01:34]} 29. Rxg7 {[%emt 0:00:48][%csl Gd7][%cal Rg7h7]} g5 {[%emt 0:00:43]} 30. Rf6 {[%emt 0:01:01]} Qh4 {[%emt 0:00:46]} 31. Rh7# {[%emt 0:00:07] Weighted Error Value: White=0.11 (very precise) /Black=0.60} 1-0

[Event "Finnish Women Championship 2022"]
[Site "Helsinki"]
[Date "2022.04.20"]
[Round "6.3"]
[White "Nazarova, Anastasia"]
[Black "Dannenberg, Alia"]
[Result "1-0"]
[ECO "B51"]
[WhiteElo "2222"]
[BlackElo "1896"]
[Annotator "TA"]
[PlyCount "61"]
[EventDate "2022.04.15"]
[EventType "tourn"]
[EventCountry "FIN"]
[SourceTitle "playchess.com"]
[Source "ChessBase"]
[SourceQuality "1"]
[TimeControl "40/5400+30:1800+30"]

{[%evp 12,61,56,47,53,63,85,82,115,110,145,154,183,173,194,141,196,156,160,125,121,99,152,75,254,238,258,204,352,176,185,177,232,102,777,783,781,764,756,749,864,864,847,818,904,883,882,850,1025,963,1124,1095]} 1. e4 {[%emt 0:02:29]} c5 {[%emt 0:00:02]} 2. Nf3 {[%emt 0:00:04]} d6 {[%emt 0:00:07]} 3. Bb5+ {[%emt 0:00:46]} Nc6 {[%emt 0:00:30]} 4. c3 {[%emt 0:04:20][%cal Bc2c3,Bc3d4][%mdl 32]} Bd7 {[%emt 0:00:32]} 5. O-O {[%emt 0:00:46]} g6 {[%emt 0:01:44]} 6. d4 {[%emt 0:02:56]} cxd4 {[%emt 0:00:29]} 7. cxd4 {[%emt 0:00:05]} (7. Nxd4 Nf6 $11) 7... Bg7 {[%emt 0:00:13] B51: Sicilian: Moscow Variation (3 Bb5+) without 3...Bd7.} 8. Nc3 {[%emt 0:03:20]} a6 {[%emt 0:03:36]} 9. Bc4 {[%emt 0:02:48]} e6 {[%emt 0:02:13] White is better.} 10. d5 {[%emt 0:20:07]} Na5 {[%emt 0:14:40] [#]} 11. dxe6 $146 {[%emt 0:10:13]} ({Predecessor:} 11. Bd3 b5 12. dxe6 Bxe6 13. Bf4 Ne7 14. Rc1 O-O 15. Qd2 Nc4 16. Bxc4 Bxc4 17. Rfd1 {½-½ (27) Miculka,D (2034)-Pavlasek,L (1681) Chess.com INT 2021}) 11... Bxe6 {[%emt 0:19:48]} (11... fxe6 12. Be2) 12. Bxe6 {[%emt 0:02:58]} (12. Bg5 Nf6 13. Bxe6 fxe6 $16) 12... fxe6 {[%emt 0:00:04]} 13. Ng5 {[%emt 0:01:49]} (13. Bf4 $18) 13... Qd7 {[%emt 0:04:15]} (13... Qe7 $16) 14. e5 {[%emt 0:15:51]} h6 {[%emt 0:15:49]} 15. Nge4 {[%emt 0:04:38]} (15. exd6 hxg5 16. Re1 (16. Bxg5 Nf6 $15) 16... Bxc3 17. bxc3 O-O-O 18. Bxg5 Re8 $11) 15... Bxe5 {[%emt 0:08:25]} 16. f4 {[%emt 0:03:18][%mdl 64] Deflection} Bg7 {[%emt 0:00:23]} (16... Bxc3 $142 17. bxc3 O-O-O) 17. f5 {[%emt 0:06:07] &Bianco is more active.} (17. Qxd6 $6 Rd8 18. Qxd7+ Rxd7 $14) (17. Nxd6+ $142 Ke7 18. Nce4) 17... O-O-O $2 {[%emt 0:01:44]} (17... exf5 $16 18. Nxd6+ Kf8) 18. fxg6 {[%emt 0:02:13] Threatens to win with Rf7.} (18. f6 $6 Nxf6 19. Nxf6 (19. Rxf6 d5 $11) 19... Qe7 $16) 18... Nc6 {[%emt 0:05:46]} 19. Be3 {[%emt 0:03:38]} Be5 {[%emt 0:02:01]} (19... Nge7 {was worth a try.} 20. Rf7 Bxc3) 20. Rf7 {[%emt 0:04:03]} (20. b4 $142) 20... Nge7 $18 {[%emt 0:00:24]} 21. h4 $36 {[%emt 0:03:32][%mdl 2048] Black is under strong pressure.} ({Not} 21. g7 Rhg8 $11) 21... h5 {[%emt 0:01:32] [#]} (21... Kb8 $142 22. Qb3 (22. g7 Rhg8 $16) 22... Qc8) 22. Bg5 {[%emt 0:01:47] The board is on fire.} (22. Na4 $1 $18 {[%cal Ra4b6] is more deadly. Hoping for Nb6+.} Kb8 23. Ng5 (23. Nb6 Qe8 $11)) 22... Rdf8 $2 {[%emt 0:04:02][%mdl 8192] [#]} (22... Rhg8 $16) 23. g7 $1 {[%emt 0:01:47][%mdl 512] White is clearly winning.} Rxf7 {[%emt 0:01:40]} (23... Bxg7 24. Rxg7) 24. gxh8=Q+ {[%emt 0:00:05]} Bxh8 {[%emt 0:00:15]} 25. Nxd6+ {[%emt 0:00:04]} Kc7 {[%emt 0:04:02]} 26. Nxf7 {[%emt 0:00:07]} Bd4+ {[%emt 0:00:12]} 27. Kh2 {[%emt 0:01:31]} Nf5 {[%emt 0:00:04]} 28. Qxh5 {[%emt 0:01:04]} Kb6 {[%emt 0:03:14]} 29. g3 {[%emt 0:00:59]} Bf2 {[%emt 0:05:04]} 30. Ne4 {[%emt 0:00:44]} Qd4 {[%emt 0:01:24]} 31. Qe2 {[%emt 0:00:39] Weighted Error Value: White=0.42/Black=0.65} 1-0

[Event "Finnish Women Championship 2022"]
[Site "Helsinki"]
[Date "2022.04.20"]
[Round "6.4"]
[White "Turunen, Tiina"]
[Black "Rinne, Heini"]
[Result "1/2-1/2"]
[ECO "B00"]
[WhiteElo "1585"]
[BlackElo "1847"]
[Annotator "NA RC COMBH"]
[PlyCount "72"]
[EventDate "2022.04.15"]
[EventType "tourn"]
[EventCountry "FIN"]
[SourceTitle "playchess.com"]
[Source "ChessBase"]
[SourceQuality "1"]
[TimeControl "40/5400+30:1800+30"]

1. d4 {[%emt 0:00:11]} Nc6 {[%emt 0:01:53]} 2. Nf3 {[%emt 0:01:14]} d6 {[%emt 0:02:24]} 3. e4 {[%emt 0:02:16]} Nf6 {[%emt 0:03:04]} 4. Nc3 {[%emt 0:02:32]} Bg4 {[%emt 0:07:12]} 5. Be2 {[%emt 0:01:08]} e5 {[%emt 0:11:13]} 6. d5 {[%emt 0:05:21]} Ne7 {[%emt 0:01:17]} 7. O-O {[%emt 0:00:35]} Ng6 {[%emt 0:00:13]} 8. h3 {[%emt 0:01:16]} Bd7 {[%emt 0:01:52]} 9. Re1 {[%emt 0:02:44]} Be7 {[%emt 0:01:12]} 10. Be3 {[%emt 0:01:13]} O-O {[%emt 0:06:48]} 11. Qd2 {[%emt 0:03:44]} Qc8 {[%emt 0:04:58]} 12. Nh2 {[%emt 0:03:01]} c6 {[%emt 0:03:46]} 13. Bg5 {[%emt 0:03:54]} c5 {[%emt 0:07:32]} 14. Rac1 {[%emt 0:08:47]} a6 {[%emt 0:01:27]} 15. Bxf6 {[%emt 0:01:21]} Bxf6 {[%emt 0:00:15]} 16. a4 {[%emt 0:00:13]} Qd8 {[%emt 0:02:56]} (16... Bd8 $15) 17. Nf3 {[%emt 0:03:07]} (17. Ra1 $11 {should be considered.}) 17... Nf4 {[%emt 0:04:16]} 18. Bf1 {[%emt 0:02:54]} Rb8 {[%emt 0:04:02]} (18... Be7 $15 {deserves consideration.}) 19. b3 {[%emt 0:00:27]} Kh8 {[%emt 0:04:33]} 20. Ne2 $11 {[%emt 0:01:59]} g5 {[%emt 0:02:42]} 21. Nh2 {[%emt 0:09:13]} Qc8 {[%emt 0:02:06]} 22. c4 {[%emt 0:03:30]} Rg8 {[%emt 0:04:19]} 23. g4 {[%emt 0:06:51]} h5 {[%emt 0:00:58]} 24. f3 {[%emt 0:01:00]} h4 {[%emt 0:11:53]} 25. Nc3 {[%emt 0:02:07]} Bd8 {[%emt 0:00:13]} 26. Nd1 {[%emt 0:00:55]} b5 {[%emt 0:00:42]} 27. axb5 {[%emt 0:01:33]} axb5 {[%emt 0:00:15]} 28. Ne3 {[%emt 0:00:52]} Ra8 {[%emt 0:05:08]} 29. Qb2 {[%emt 0:02:23]} b4 {[%emt 0:01:49]} 30. Ra1 {[%emt 0:01:16]} Bc7 {[%emt 0:01:26]} 31. Ra2 {[%emt 0:00:44]} Rxa2 {[%emt 0:01:25]} 32. Qxa2 {[%emt 0:00:15]} Qb7 {[%emt 0:00:20]} 33. Ra1 {[%emt 0:00:34]} Rb8 {[%emt 0:00:42]} 34. Qa7 {[%emt 0:01:51]} Kg7 {[%emt 0:01:39]} 35. Kf2 {[%emt 0:02:14]} Kf6 {[%emt 0:00:08]} 36. Ke1 {[%emt 0:02:09]} Ke7 {[%emt 0:00:16]} 1/2-1/2

[Event "Finnish Women Championship 2022"]
[Site "Helsinki"]
[Date "2022.04.21"]
[Round "7.4"]
[White "Norlamo, Sarabella"]
[Black "Nazarova, Anastasia"]
[Result "0-1"]
[ECO "A29"]
[WhiteElo "1957"]
[BlackElo "2222"]
[Annotator "TA"]
[PlyCount "108"]
[EventDate "2022.04.15"]
[EventType "tourn"]
[EventCountry "FIN"]
[SourceTitle "playchess.com"]
[Source "ChessBase"]
[SourceQuality "1"]
[TimeControl "40/5400+30:1800+30"]

{[%evp 16,108,0,6,0,-14,-22,-83,-43,-88,-87,-102,-66,-75,-71,-69,-59,-83,-81,-91,-10,-18,-17,-20,-17,-41,-36,-108,-91,-85,-72,-83,-66,-83,-72,-78,-4,-4,-5,-41,-6,-12,0,0,0,-16,0,0,0,-31,-20,-70,-46,-61,-53,-80,-80,-159,-97,-216,-120,-117,-119,-396,-285,-495,-466,-458,-381,-1068,-1008,-797,-609,-393,-384,-370,-354,-12840,-12840,-12841,-12841,-12841,-12842,-12842,-12843,-12843,-12843,-12844,-12844,-12845,-12845,-12845,-12846,-12846,-12847]} 1. c4 {[%emt 0:00:03]} Nf6 {[%emt 0:00:09]} 2. Nc3 {[%emt 0:00:05]} e5 {[%emt 0:00:38]} 3. g3 {[%emt 0:00:12]} d5 {[%emt 0:00:33]} 4. cxd5 {[%emt 0:00:07]} Nxd5 {[%emt 0:00:03]} 5. Bg2 {[%emt 0:00:11]} Nb6 {[%emt 0:00:06]} 6. Nf3 {[%emt 0:00:47]} Nc6 {[%emt 0:00:04]} 7. O-O {[%emt 0:00:16]} Be6 {[%emt 0:00:08]} 8. d3 {[%emt 0:01:14][%cal Bd2d3,Bd3d4][%mdl 32]} Be7 {[%emt 0:00:08]} 9. Be3 {[%emt 0:14:11]} f5 {[%emt 0:12:56] A29: English Opening: Four Knights Variation with 4 g3.} 10. d4 {[%emt 0:17:08]} e4 {[%emt 0:00:17]} 11. Ne1 {[%emt 0:03:23] [#]} (11. Nd2 $11) 11... Qd7 $146 {[%emt 0:06:00] Black is better.} ({Predecessor:} 11... Bf6 12. Nc2 Qd7 13. f3 exf3 14. exf3 O-O-O 15. Ne2 Rhe8 16. b3 Nd5 17. Bf2 f4 {0-1 (85) Llopis Jordan,L (1931)-Ayala Abenza,J (2149) Barcelona 2014}) 12. Nc2 {[%emt 0:02:57]} O-O-O {[%emt 0:01:38]} 13. Qc1 {[%emt 0:07:44]} Nd5 {[%emt 0:06:07]} 14. Bg5 {[%emt 0:14:54]} Bxg5 {[%emt 0:03:26]} 15. Qxg5 {[%emt 0:00:03]} h6 {[%emt 0:02:30]} 16. Qc1 {[%emt 0:00:01]} g5 {[%emt 0:10:10]} 17. f3 {[%emt 0:01:52]} Ndb4 {[%emt 0:17:06] Black is much more active.} (17... exf3 $1 $17 18. Rxf3 f4) 18. fxe4 $11 {[%emt 0:04:59] aiming for d5.} Nxc2 {[%emt 0:00:50]} 19. Qxc2 {[%emt 0:00:12]} Nxd4 {[%emt 0:01:00]} 20. Qc1 {[%emt 0:03:51]} fxe4 {[%emt 0:01:37]} 21. Bxe4 {[%emt 0:00:35]} (21. Qe3 $1 $15) 21... Bh3 $17 {[%emt 0:01:20]} 22. Rf2 {[%emt 0:07:21]} Qe6 {[%emt 0:07:29]} 23. Qe1 {[%emt 0:04:37]} Qe5 {[%emt 0:08:01]} 24. Rd1 {[%emt 0:01:54]} h5 {[%emt 0:02:50]} 25. e3 {[%emt 0:01:34]} Ne6 {[%emt 0:00:05]} (25... Nb5 $17 26. Nxb5 Qxb5) 26. Rxd8+ $11 {[%emt 0:00:14]} Rxd8 {[%emt 0:00:06]} 27. Rd2 {[%emt 0:02:19]} (27. Qe2 $5 {[%cal Re2h5]}) 27... Rxd2 {[%emt 0:01:11]} 28. Qxd2 {[%emt 0:00:01]} c6 {[%emt 0:00:37]} 29. Qf2 {[%emt 0:00:44]} Qc5 {[%emt 0:08:39]} 30. Bg2 {[%emt 0:01:53]} Bxg2 {[%emt 0:02:02]} 31. Kxg2 {[%emt 0:00:02]} b5 {[%emt 0:02:07]} 32. Ne4 {[%emt 0:02:59]} Qd5 {[%emt 0:00:51]} 33. Qc2 {[%emt 0:01:56]} (33. Qf5 $11) 33... g4 {[%emt 0:00:56] ...Ng5 is the strong threat.} 34. Kg1 {[%emt 0:00:02]} Kc7 {[%emt 0:00:53]} 35. a4 {[%emt 0:00:56] [#]} b4 $1 {[%emt 0:00:44]} 36. Nf6 {[%emt 0:00:24] [#]} (36. b3 $142) 36... Qf3 {[%emt 0:01:24]} (36... Qg5 $142 $1 {[%cal Rg5f6]} 37. Qf2 Nc5) 37. Qf2 {[%emt 0:02:41]} (37. Nxh5 $17 Qxe3+ 38. Qf2 Qxf2+ 39. Kxf2) 37... Ng5 {[%emt 0:02:15]} ({Black should try} 37... Qxf2+ $19 38. Kxf2 Nc5) 38. Qxf3 $17 {[%emt 0:00:18]} Nxf3+ {[%emt 0:00:04][%mdl 4096] Endgame KN-KN} 39. Kh1 $2 {[%emt 0:00:29][%mdl 8192] Now White is beyond hope.} (39. Kf2 $17) 39... Ne1 {[%emt 0:00:26]} 40. Nxh5 $2 {[%emt 0:00:21]} (40. Ne4 {was necessary.} Nc2 41. Kg1) 40... Nd3 $19 {[%emt 0:00:04]} 41. b3 {[%emt 0:06:40]} Nc1 {[%emt 0:00:12]} 42. Nf6 $2 {[%emt 0:04:21]} (42. Kg1 Nxb3 43. Kf2) 42... Nxb3 {[%emt 0:00:20]} 43. Nxg4 {[%emt 0:00:06]} Nc5 {[%emt 0:02:43] Threatens to win with ...b3.} 44. Nf2 {[%emt 0:01:53]} b3 {[%emt 0:00:18]} 45. Nd1 {[%emt 0:00:20]} Nxa4 {[%emt 0:00:09] And now ...c5 would win.} 46. h4 $2 {[%emt 0:02:27]} (46. Kg2) 46... b2 {[%emt 0:07:37] Black is clearly winning.} 47. Nxb2 {[%emt 0:00:16]} Nxb2 {[%emt 0:00:02] KN-K3P} 48. h5 {[%emt 0:01:41]} Nc4 {[%emt 0:00:06]} 49. h6 {[%emt 0:01:27]} Ne5 {[%emt 0:00:07]} 50. h7 {[%emt 0:03:00]} Ng6 {[%emt 0:00:57]} 51. Kg2 {[%emt 0:00:26]} a5 {[%emt 0:00:02][%cal Ba7a5,Ba5a4,Ba4a3,Ba3a2][%mdl 32]} 52. Kf2 {[%emt 0:00:17]} a4 {[%emt 0:00:42]} 53. Ke2 {[%emt 0:00:25]} a3 {[%emt 0:00:11]} 54. Kd2 {[%emt 0:00:17]} a2 {[%emt 0:00:03] Weighted Error Value: White=0.49/Black=0.19 (very precise)} 0-1

[Event "Finnish Women Championship 2022"]
[Site "Helsinki"]
[Date "2022.04.21"]
[Round "7.5"]
[White "Lehtinen, Helja"]
[Black "Sippola, Sara-Olivia"]
[Result "1-0"]
[ECO "A11"]
[WhiteElo "1907"]
[BlackElo "1531"]
[Annotator "TA"]
[PlyCount "79"]
[EventDate "2022.04.15"]
[EventType "tourn"]
[EventCountry "FIN"]
[SourceTitle "playchess.com"]
[Source "ChessBase"]
[SourceQuality "1"]
[TimeControl "40/5400+30:1800+30"]

{[%evp 11,79,9,0,0,27,23,11,-7,7,-2,0,0,0,-12,23,0,23,0,16,26,48,48,53,30,29,34,43,19,53,0,0,-10,0,-16,21,0,0,0,89,62,116,105,148,154,135,120,130,90,124,119,115,72,152,154,190,175,191,185,310,290,361,364,373,380,381,368,551,487,450,450]} 1. Nf3 {[%emt 0:00:04]} d5 {[%emt 0:00:12]} 2. e3 {[%emt 0:00:07]} Nf6 {[%emt 0:00:15]} 3. c4 {[%emt 0:00:11]} c6 {[%emt 0:00:23]} 4. Nc3 {[%emt 0:00:36]} e6 {[%emt 0:01:28]} 5. b3 {[%emt 0:00:22]} Bd6 {[%emt 0:00:36]} 6. Bb2 {[%emt 0:00:32]} O-O {[%emt 0:00:17]} 7. d4 {[%emt 0:02:44] A11: English Opening: 1...c6.} b6 {[%emt 0:03:29]} 8. Bd3 {[%emt 0:01:01]} Nbd7 {[%emt 0:00:59]} 9. cxd5 {[%emt 0:04:00] The position is equal.} exd5 {[%emt 0:00:42]} 10. O-O {[%emt 0:00:22]} Re8 {[%emt 0:01:24] Inhibits e4.} 11. Qc2 {[%emt 0:01:50][%cal Oc3d5]} Bb7 {[%emt 0:02:03]} 12. Rac1 {[%emt 0:04:48] [#]} Nf8 $146 {[%emt 0:07:21]} ({Predecessor:} 12... Qe7 13. Bf5 g6 14. Bh3 Rad8 15. Ne2 Ne4 16. Bxd7 Rxd7 17. Ne5 Rc7 {1-0 (37) Zvjaginsev,V (2639)-Vokhidov,S (2512) St Petersburg 2019}) 13. Rfd1 {[%emt 0:08:51]} Ng6 {[%emt 0:05:40]} 14. Ne2 {[%emt 0:10:27]} Qe7 {[%emt 0:02:47]} 15. Ng3 {[%emt 0:03:32]} Bxg3 {[%emt 0:21:03]} 16. hxg3 {[%emt 0:00:09]} Ne4 {[%emt 0:00:39]} 17. Qe2 {[%emt 0:06:23]} a5 {[%emt 0:05:04]} 18. a4 {[%emt 0:05:08]} f6 {[%emt 0:06:57][%cal Bf7f6,Bf6f5][%mdl 32]} 19. Qc2 {[%emt 0:07:38]} Nh8 {[%emt 0:01:54][%cal Bg6h8,Bh8f7,Bf7d6][%mdl 32]} 20. Nd2 {[%emt 0:03:39]} ({White should try} 20. g4 $14) 20... f5 $1 $11 {[%emt 0:00:45]} 21. Nf3 {[%emt 0:01:29]} Nf7 {[%emt 0:00:33]} 22. Ra1 {[%emt 0:01:51]} Nfd6 {[%emt 0:01:46]} 23. Ne5 {[%emt 0:04:57]} Rac8 {[%emt 0:01:43]} 24. Qe2 {[%emt 0:01:04]} Ra8 {[%emt 0:01:22]} (24... Qg5 $11 {remains equal.}) 25. Rdc1 {[%emt 0:03:12]} Rec8 {[%emt 0:01:04]} (25... Rac8 $14) 26. Rc2 $16 {[%emt 0:02:32]} c5 {[%emt 0:03:45] [#]} 27. Rac1 $1 {[%emt 0:04:31]} Rc7 {[%emt 0:03:28]} 28. Ba3 {[%emt 0:03:15]} Rac8 {[%emt 0:00:59]} 29. Nf3 {[%emt 0:02:06]} Qd7 {[%emt 0:01:56]} 30. dxc5 {[%emt 0:03:28]} Nxc5 {[%emt 0:02:47]} 31. Bxc5 {[%emt 0:00:23]} bxc5 {[%emt 0:00:18]} (31... Rxc5 $142 32. Qe1 Rxc2 33. Rxc2 Ne4) 32. Qd2 {[%emt 0:04:30]} c4 {[%emt 0:09:44]} 33. Qxa5 {[%emt 0:03:15]} Ra8 {[%emt 0:01:46]} 34. Qd2 {[%emt 0:00:42]} Rcc8 {[%emt 0:02:18]} (34... Ne4 $142 35. Bxe4 fxe4) 35. bxc4 $18 {[%emt 0:01:37][%cal Bb3c4,Bc4c5][%mdl 32] [#] Threatens to win with c5.} Qxa4 {[%emt 0:02:29][%cal Rd5c4]} 36. c5 {[%emt 0:00:53]} ({Less strong is} 36. cxd5 Rxc2 37. Bxc2 Qa2 $18) 36... Ne4 {[%emt 0:01:17]} 37. Bxe4 {[%emt 0:00:39]} dxe4 {[%emt 0:00:56]} 38. Nd4 {[%emt 0:02:46] c6 is the strong threat.} Ba6 {[%emt 0:02:55]} (38... Qa5 {was called for.} 39. Qd1 (39. Nxf5 Rxc5 40. Qxa5 Rcxa5 $18) 39... Rd8) 39. Nxf5 {[%emt 0:01:26]} Rd8 {[%emt 0:01:01]} 40. Qc3 {[%emt 0:00:25] Weighted Error Value: White=0.13 (very precise) /Black=0.31} 1-0

[Event "Finnish Women Championship 2022"]
[Site "Helsinki"]
[Date "2022.04.22"]
[Round "8.2"]
[White "Nazarova, Anastasia"]
[Black "Lehtinen, Helja"]
[Result "1-0"]
[ECO "E88"]
[WhiteElo "2222"]
[BlackElo "1907"]
[Annotator "TA"]
[PlyCount "61"]
[EventDate "2022.04.15"]
[EventType "tourn"]
[EventCountry "FIN"]
[SourceTitle "playchess.com"]
[Source "ChessBase"]
[SourceQuality "1"]
[TimeControl "40/5400+30:1800+30"]

{[%evp 15,61,48,93,95,116,124,196,140,205,195,197,187,306,315,306,287,280,312,340,344,469,454,464,465,437,411,397,209,434,350,461,332,393,331,987,960,990,980,887,851,2074,2008,1773,1797,29991,29991,29991,29992]} 1. d4 {[%emt 0:00:43]} Nf6 {[%emt 0:00:14]} 2. c4 {[%emt 0:00:43]} g6 {[%emt 0:00:10]} 3. Nc3 {[%emt 0:00:20]} Bg7 {[%emt 0:00:07]} 4. e4 {[%emt 0:00:03]} d6 {[%emt 0:00:07]} 5. f3 {[%emt 0:00:03]} O-O {[%emt 0:00:23]} 6. Be3 {[%emt 0:00:04]} e5 {[%emt 0:01:42]} 7. d5 {[%emt 0:00:14]} c6 {[%emt 0:02:19]} 8. Qd2 {[%emt 0:03:02]} Ne8 {[%emt 0:05:15]} 9. g4 {[%emt 0:04:55] White is more active. E88: King's Indian: Sämisch: 6...e5 7 d5 c6.} Na6 {[%emt 0:03:37]} 10. O-O-O {[%emt 0:01:05]} c5 {[%emt 0:03:57] [#]} (10... Qa5 $16 {keeps fighting.}) 11. Bd3 $146 {[%emt 0:01:52]} ({White should try} 11. h4 $18) ({Predecessor:} 11. h4 f6 12. Nge2 f5 13. Bg5 Bf6 14. gxf5 Bxg5 15. hxg5 gxf5 16. Bh3 f4 17. Rdg1 {1-0 (37) Curovic,S-Volk,A Boeblingen 1985}) 11... Rb8 {[%emt 0:08:16] [#]} (11... Nb4 $16 {was worth a try.}) 12. h4 $1 $18 {[%emt 0:02:20][%cal Bh2h4,Bh4h5,Bh5h6][%mdl 32]} Nb4 {[%emt 0:01:50]} 13. Bb1 {[%emt 0:01:48]} f5 {[%emt 0:03:57]} (13... Nc7 $142 14. h5 Bh8) 14. exf5 {[%emt 0:03:20]} gxf5 {[%emt 0:00:11]} 15. a3 {[%emt 0:01:32]} Na6 {[%emt 0:01:46]} 16. h5 {[%emt 0:04:06]} fxg4 {[%emt 0:10:52]} 17. fxg4 {[%emt 0:00:05]} Bxg4 {[%emt 0:01:16]} 18. Nge2 {[%emt 0:00:13]} Kh8 {[%emt 0:05:59]} 19. h6 {[%emt 0:00:35]} Bf6 {[%emt 0:00:09]} 20. Rhg1 {[%emt 0:01:39]} Rg8 {[%emt 0:02:00]} 21. Qd3 $40 {[%emt 0:17:56][%mdl 128] Black is in trouble.} (21. Rdf1 $142) 21... Qd7 $2 {[%emt 0:03:05]} (21... Qe7 22. Rdf1 Bg5) 22. Rdf1 {[%emt 0:04:37]} Bh4 {[%emt 0:08:11]} 23. Ne4 {[%emt 0:14:10]} Qe7 {[%emt 0:05:16]} 24. N2g3 {[%emt 0:11:43] [#] Hoping for Nf5.} Rd8 $2 {[%emt 0:09:43]} (24... Rg6 25. Nf2 Bd7) 25. Nf5 {[%emt 0:07:26]} Bxf5 {[%emt 0:00:12]} 26. Rxf5 {[%emt 0:00:10] Strongly threatening Ng5.} Rxg1+ {[%emt 0:02:22]} 27. Bxg1 {[%emt 0:00:04]} Rd7 {[%emt 0:00:49]} 28. Qf1 {[%emt 0:00:13] Intending Rf8+ and mate.} Kg8 {[%emt 0:00:58] Inhibits Rf8+.} 29. Be3 {[%emt 0:01:16] Qg2+ is the strong threat.} Nec7 {[%emt 0:04:27]} 30. Qg2+ {[%emt 0:01:16]} Kh8 {[%emt 0:00:37]} 31. Qf3 {[%emt 0:00:05] Black did not feel at home in the position after the opening.  Weighted Error Value: White=0.30/Black=0.86} 1-0